Workbook

Sheet Cover
B2: 3GPP TSG-RAN WG4 Meeting #116 | J2: R4-2515039
B3: Prague, Czech, 13th-17th, Oct, 2025
B5: Source: Samsung
B6: Title: Simulation results summary for SBFD demodulation
B7: Agenda: 6.23

Sheet Parameters
C2: Parameters for deriving performance requirements
C3: Ideal Span Threshold | D3: 2 | E3: dB
C4: Impairment Span Threshold | D4: 4 | E4: dB
B7: Notes | C7: 1. Call function DerivingPerfReq()
C8: 2. If the ruls does not apply, or fails, -100dB or less will be returned
D9: -100 | E9: Not enough input
D10: -101 | E10: Input should be pairs
D11: -102 | E11: Too large span for impairment
D12: -103 | E12: After removal iteration, not enough input

Sheet PUSCH requirement UL muting
A1: case | B1: Tx | C1: case | D1: Tx | E1: Rx | F1: SCS | G1: BW | H1: Number of muting symbol | I1: mapping type | J1: Propagation condition for target cell | K1: Propagation conditon for interferer cell | L1: Number of Interferer cells | M1: INR set | N1: 38.104 req | O1: 38.141-1/2 req | P1: Samsung | S1: ZTE | V1: Huawei | Y1: Ericsson | AB1: Nokia | AE1: SPAN | AG1: Average
P2: MMSE IRC without using muting | Q2: MMSE IRC with using muting | R2: gain | S2: MMSE IRC without using muting | T2: MMSE IRC with using muting | U2: gain | V2: MMSE IRC without using muting | W2: MMSE IRC with using muting | X2: gain | Y2: MMSE IRC without using muting | Z2: MMSE IRC with using muting | AA2: gain | AB2: MMSE IRC without using muting | AC2: MMSE IRC with using muting | AD2: gain | AE2: Ideal | AF2: Impairment | AG2: Ideal | AH2: Impairment
C3: 1 | D3: 1 | E3: 2 | F3: 30KHz | G3: 20MHz | H3: 2 (4,14) | I3: A | J3: TDLC300-100 | K3: TDLC300-0 | L3: 2 | M3: (5,-5) | P3: 13.444 | Q3: 13.158 | R3: 0.286 | S3: 12 | T3: 11.5 | U3: =S3-T3 -> 0.5
C4: 2 | D4: 1 | E4: 2 | F4: 30KHz | G4: 20MHz | H4: 2 (4,14) | I4: A | J4: TDLC300-100 | K4: TDLC300-0 | L4: 2 | M4: (9,-1) | P4: 14.653 | Q4: 14.376 | R4: 0.277 | S4: 14.7 | T4: 14.3 | U4: =S4-T4 -> 0.4
C5: 3 | D5: 1 | E5: 2 | F5: 30KHz | G5: 20MHz | H5: 2 (4,14) | I5: A | J5: TDLC300-100 | K5: TDLC300-0 | L5: 2 | M5: (-1,-1) | P5: 12.69 | Q5: 12.369 | R5: 0.321
C6: 4 | D6: 1 | E6: 2 | F6: 30KHz | G6: 20MHz | H6: 2 (4,14) | I6: A | J6: TDLC300-100 | K6: TDLC300-0 | L6: 2 | M6: (3,3) | P6: 13.59 | Q6: 13.297 | R6: 0.293
C7: 5 | D7: 1 | E7: 2 | F7: 30KHz | G7: 20MHz | H7: 1 (4) | I7: A | J7: TDLC300-100 | K7: TDLC300-0 | L7: 2 | M7: (5,-5) | P7: 12.908 | Q7: 12.682 | R7: 0.226 | V7: 13.3 | W7: 12.6 | X7: =V7-W7 -> 0.7 | Y7: 12.27 | Z7: 12.2 | AA7: =Y7-Z7 -> 0.07
C8: 6 | D8: 1 | E8: 2 | F8: 30KHz | G8: 20MHz | H8: 1 (4) | I8: A | J8: TDLC300-100 | K8: TDLC300-0 | L8: 2 | M8: (9,-1) | P8: 14.213 | Q8: 14.058 | R8: 0.155 | V8: 14.5 | W8: 13.7 | X8: 0.8 | Y8: 14.08 | Z8: 13.8 | AA8: =Y8-Z8 -> 0.28
C9: 7 | D9: 1 | E9: 2 | F9: 30KHz | G9: 20MHz | H9: 1 (4) | I9: A | J9: TDLC300-100 | K9: TDLC300-0 | L9: 2 | M9: (-1,-1) | P9: 12.152 | Q9: 11.918 | R9: 0.234 | V9: 12.6 | W9: 12 | X9: 0.6 | Y9: 11.65 | Z9: 11.64 | AA9: =Y9-Z9 -> 0.01
C10: 8 | D10: 1 | E10: 2 | F10: 30KHz | G10: 20MHz | H10: 1 (4) | I10: A | J10: TDLC300-100 | K10: TDLC300-0 | L10: 2 | M10: (3,3) | P10: 13.055 | Q10: 12.849 | R10: 0.206 | V10: 13.5 | W10: 12.8 | X10: 0.7 | Y10: 13.17 | Z10: 13.03 | AA10: =Y10-Z10 -> 0.14
C11: 9 | D11: 1 | E11: 2 | F11: 30KHz | G11: 20MHz | H11: 2 (2,12) | I11: B | J11: TDLC300-100 | K11: TDLC300-0 | L11: 2 | M11: (5,-5) | P11: 13.429 | Q11: 13.144 | R11: 0.285
C12: 10 | D12: 1 | E12: 2 | F12: 30KHz | G12: 20MHz | H12: 2 (2,12) | I12: B | J12: TDLC300-100 | K12: TDLC300-0 | L12: 2 | M12: (9,-1) | P12: 14.589 | Q12: 14.3 | R12: 0.289
C13: 11 | D13: 1 | E13: 2 | F13: 30KHz | G13: 20MHz | H13: 2 (2,12) | I13: B | J13: TDLC300-100 | K13: TDLC300-0 | L13: 2 | M13: (-1,-1) | P13: 12.714 | Q13: 12.364 | R13: 0.35
C14: 12 | D14: 1 | E14: 2 | F14: 30KHz | G14: 20MHz | H14: 2 (2,12) | I14: B | J14: TDLC300-100 | K14: TDLC300-0 | L14: 2 | M14: (3,3) | P14: 13.579 | Q14: 13.267 | R14: 0.312
C15: 13 | D15: 1 | E15: 2 | F15: 30KHz | G15: 20MHz | H15: 1 (2) | I15: B | J15: TDLC300-100 | K15: TDLC300-0 | L15: 2 | M15: (5,-5) | P15: 12.909 | Q15: 12.685 | R15: 0.224 | V15: 13.3 | W15: 12.6 | X15: 0.7
C16: 14 | D16: 1 | E16: 2 | F16: 30KHz | G16: 20MHz | H16: 1 (2) | I16: B | J16: TDLC300-100 | K16: TDLC300-0 | L16: 2 | M16: (9,-1) | P16: 14.158 | Q16: 13.971 | R16: 0.187 | V16: 14.5 | W16: 13.7 | X16: 0.8
C17: 15 | D17: 1 | E17: 2 | F17: 30KHz | G17: 20MHz | H17: 1 (2) | I17: B | J17: TDLC300-100 | K17: TDLC300-0 | L17: 2 | M17: (-1,-1) | P17: 12.19 | Q17: 11.984 | R17: 0.206 | V17: 12.6 | W17: 12 | X17: 0.6
C18: 16 | D18: 1 | E18: 2 | F18: 30KHz | G18: 20MHz | H18: 1 (2) | I18: B | J18: TDLC300-100 | K18: TDLC300-0 | L18: 2 | M18: (3,3) | P18: 13.059 | Q18: 12.866 | R18: 0.193 | V18: 13.5 | W18: 12.8 | X18: 0.7
C21: 1 | D21: 1 | E21: 4 | F21: 30KHz | G21: 20MHz | H21: 2 (4,14) | I21: A | J21: TDLC300-100 | K21: TDLC300-0 | L21: 2 | M21: (5,-5) | P21: 8.251 | Q21: 7.607 | R21: 0.644 | S21: 6.3 | T21: 6 | U21: =S21-T21 -> 0.3
C22: 2 | D22: 1 | E22: 4 | F22: 30KHz | G22: 20MHz | H22: 2 (4,14) | I22: A | J22: TDLC300-100 | K22: TDLC300-0 | L22: 2 | M22: (9,-1) | P22: 8.475 | Q22: 7.682 | R22: 0.793 | S22: 8 | T22: 7.5 | U22: 0.5
C23: 3 | D23: 1 | E23: 4 | F23: 30KHz | G23: 20MHz | H23: 2 (4,14) | I23: A | J23: TDLC300-100 | K23: TDLC300-0 | L23: 2 | M23: (-1,-1) | P23: 7.83 | Q23: 7.065 | R23: 0.765
C24: 4 | D24: 1 | E24: 4 | F24: 30KHz | G24: 20MHz | H24: 2 (4,14) | I24: A | J24: TDLC300-100 | K24: TDLC300-0 | L24: 2 | M24: (3,3) | P24: 8.369 | Q24: 7.671 | R24: 0.698
C25: 5 | D25: 1 | E25: 4 | F25: 30KHz | G25: 20MHz | H25: 1 (4) | I25: A | J25: TDLC300-100 | K25: TDLC300-0 | L25: 2 | M25: (5,-5) | P25: 7.949 | Q25: 7.427 | R25: 0.522 | Y25: 7.31 | Z25: 7.27 | AA25: =Y25-Z25 -> 0.04
C26: 6 | D26: 1 | E26: 4 | F26: 30KHz | G26: 20MHz | H26: 1 (4) | I26: A | J26: TDLC300-100 | K26: TDLC300-0 | L26: 2 | M26: (9,-1) | P26: 8.035 | Q26: 7.422 | R26: 0.613 | Y26: 8.61 | Z26: 8.49 | AA26: =Y26-Z26 -> 0.12
C27: 7 | D27: 1 | E27: 4 | F27: 30KHz | G27: 20MHz | H27: 1 (4) | I27: A | J27: TDLC300-100 | K27: TDLC300-0 | L27: 2 | M27: (-1,-1) | P27: 7.479 | Q27: 6.918 | R27: 0.561 | Y27: 6.93 | Z27: 6.98 | AA27: =Y27-Z27 -> -0.05
C28: 8 | D28: 1 | E28: 4 | F28: 30KHz | G28: 20MHz | H28: 1 (4) | I28: A | J28: TDLC300-100 | K28: TDLC300-0 | L28: 2 | M28: (3,3) | P28: 8.038 | Q28: 7.482 | R28: 0.556 | Y28: 7.6 | Z28: 7.5 | AA28: =Y28-Z28 -> 0.1
C29: 9 | D29: 1 | E29: 4 | F29: 30KHz | G29: 20MHz | H29: 2 (2,12) | I29: B | J29: TDLC300-100 | K29: TDLC300-0 | L29: 2 | M29: (5,-5) | P29: 8.273 | Q29: 7.639 | R29: 0.634
C30: 10 | D30: 1 | E30: 4 | F30: 30KHz | G30: 20MHz | H30: 2 (2,12) | I30: B | J30: TDLC300-100 | K30: TDLC300-0 | L30: 2 | M30: (9,-1) | P30: 8.526 | Q30: 7.695 | R30: 0.831
C31: 11 | D31: 1 | E31: 4 | F31: 30KHz | G31: 20MHz | H31: 2 (2,12) | I31: B | J31: TDLC300-100 | K31: TDLC300-0 | L31: 2 | M31: (-1,-1) | P31: 7.847 | Q31: 7.06 | R31: 0.787
C32: 12 | D32: 1 | E32: 4 | F32: 30KHz | G32: 20MHz | H32: 2 (2,12) | I32: B | J32: TDLC300-100 | K32: TDLC300-0 | L32: 2 | M32: (3,3) | P32: 8.387 | Q32: 7.745 | R32: 0.642
C33: 13 | D33: 1 | E33: 4 | F33: 30KHz | G33: 20MHz | H33: 1 (2) | I33: B | J33: TDLC300-100 | K33: TDLC300-0 | L33: 2 | M33: (5,-5) | P33: 8.029 | Q33: 7.526 | R33: 0.503
C34: 14 | D34: 1 | E34: 4 | F34: 30KHz | G34: 20MHz | H34: 1 (2) | I34: B | J34: TDLC300-100 | K34: TDLC300-0 | L34: 2 | M34: (9,-1) | P34: 8.091 | Q34: 7.465 | R34: 0.626
C35: 15 | D35: 1 | E35: 4 | F35: 30KHz | G35: 20MHz | H35: 1 (2) | I35: B | J35: TDLC300-100 | K35: TDLC300-0 | L35: 2 | M35: (-1,-1) | P35: 7.541 | Q35: 6.972 | R35: 0.569
C36: 16 | D36: 1 | E36: 4 | F36: 30KHz | G36: 20MHz | H36: 1 (2) | I36: B | J36: TDLC300-100 | K36: TDLC300-0 | L36: 2 | M36: (3,3) | P36: 8.151 | Q36: 7.626 | R36: 0.525
C39: 1 | D39: 1 | E39: 8 | F39: 30KHz | G39: 20MHz | H39: 2 (4,13) | I39: A | J39: TDLC300-100 | K39: TDLC300-0 | L39: 2 | M39: (5,-5) | P39: 6.946 | Q39: 3.868 | R39: 3.078
C40: 2 | D40: 1 | E40: 8 | F40: 30KHz | G40: 20MHz | H40: 2 (4,13) | I40: A | J40: TDLC300-100 | K40: TDLC300-0 | L40: 2 | M40: (9,-1) | P40: 6.886 | Q40: 4.047 | R40: 2.839
C41: 3 | D41: 1 | E41: 8 | F41: 30KHz | G41: 20MHz | H41: 2 (4,13) | I41: A | J41: TDLC300-100 | K41: TDLC300-0 | L41: 2 | M41: (-1,-1) | P41: 7.035 | Q41: 3.908 | R41: 3.127
C42: 4 | D42: 1 | E42: 8 | F42: 30KHz | G42: 20MHz | H42: 2 (4,13) | I42: A | J42: TDLC300-100 | K42: TDLC300-0 | L42: 2 | M42: (3,3) | P42: 6.985 | Q42: 3.856 | R42: 3.129
C43: 5 | D43: 1 | E43: 8 | F43: 30KHz | G43: 20MHz | H43: 1 (4) | I43: A | J43: TDLC300-100 | K43: TDLC300-0 | L43: 2 | M43: (5,-5) | P43: 6.597 | Q43: 4.327 | R43: 2.27 | Y43: 3.14 | Z43: 3.23 | AA43: =Y43-Z43 -> -0.09
C44: 6 | D44: 1 | E44: 8 | F44: 30KHz | G44: 20MHz | H44: 1 (4) | I44: A | J44: TDLC300-100 | K44: TDLC300-0 | L44: 2 | M44: (9,-1) | P44: 6.494 | Q44: 4.397 | R44: 2.097 | Y44: 5.14 | Z44: 5.39 | AA44: =Y44-Z44 -> -0.25
C45: 7 | D45: 1 | E45: 8 | F45: 30KHz | G45: 20MHz | H45: 1 (4) | I45: A | J45: TDLC300-100 | K45: TDLC300-0 | L45: 2 | M45: (-1,-1) | P45: 6.654 | Q45: 4.354 | R45: 2.3 | Y45: 1.64 | Z45: 1.81 | AA45: =Y45-Z45 -> -0.17
C46: 8 | D46: 1 | E46: 8 | F46: 30KHz | G46: 20MHz | H46: 1 (4) | I46: A | J46: TDLC300-100 | K46: TDLC300-0 | L46: 2 | M46: (3,3) | P46: 6.615 | Q46: 4.295 | R46: 2.32 | Y46: 3.47 | Z46: 3.62 | AA46: =Y46-Z46 -> -0.15
C47: 9 | D47: 1 | E47: 8 | F47: 30KHz | G47: 20MHz | H47: 2 (2,12) | I47: B | J47: TDLC300-100 | K47: TDLC300-0 | L47: 2 | M47: (5,-5) | P47: 7.011 | Q47: 3.874 | R47: 3.137
C48: 10 | D48: 1 | E48: 8 | F48: 30KHz | G48: 20MHz | H48: 2 (2,12) | I48: B | J48: TDLC300-100 | K48: TDLC300-0 | L48: 2 | M48: (9,-1) | P48: 6.87 | Q48: 3.995 | R48: 2.875
C49: 11 | D49: 1 | E49: 8 | F49: 30KHz | G49: 20MHz | H49: 2 (2,12) | I49: B | J49: TDLC300-100 | K49: TDLC300-0 | L49: 2 | M49: (-1,-1) | P49: 7.126 | Q49: 3.987 | R49: 3.139
C50: 12 | D50: 1 | E50: 8 | F50: 30KHz | G50: 20MHz | H50: 2 (2,12) | I50: B | J50: TDLC300-100 | K50: TDLC300-0 | L50: 2 | M50: (3,3) | P50: 7.034 | Q50: 3.857 | R50: 3.177
C51: 13 | D51: 1 | E51: 8 | F51: 30KHz | G51: 20MHz | H51: 1 (2) | I51: B | J51: TDLC300-100 | K51: TDLC300-0 | L51: 2 | M51: (5,-5) | P51: 6.718 | Q51: 4.399 | R51: 2.319
C52: 14 | D52: 1 | E52: 8 | F52: 30KHz | G52: 20MHz | H52: 1 (2) | I52: B | J52: TDLC300-100 | K52: TDLC300-0 | L52: 2 | M52: (9,-1) | P52: 6.536 | Q52: 4.396 | R52: 2.14
C53: 15 | D53: 1 | E53: 8 | F53: 30KHz | G53: 20MHz | H53: 1 (2) | I53: B | J53: TDLC300-100 | K53: TDLC300-0 | L53: 2 | M53: (-1,-1) | P53: 6.82 | Q53: 4.477 | R53: 2.343
C54: 16 | D54: 1 | E54: 8 | F54: 30KHz | G54: 20MHz | H54: 1 (2) | I54: B | J54: TDLC300-100 | K54: TDLC300-0 | L54: 2 | M54: (3,3) | P54: 6.747 | Q54: 4.376 | R54: 2.371
